[Event "Titled Tuesday Blitz September 27 Early 2022"]
[White "Azaiez, Fahmi"]
[Black "Kovacevic, Radmila"]
[WhiteFideId "5500818"]
[BlackFideId "933171"]
[WhiteElo "2457"]
[BlackElo "2208"]
[Result "1-0"]
[Round "11"]
[TimeControl "180+1"]
[Date "2022.09.27"]
[WhiteClock "0:00:45"]
[BlackClock "0:00:12"]

1. e4 {[%clk 0:03:00]}  e5 {[%clk 0:02:58]} 2. Nf3 {[%clk 0:03:00]}  d5 {[%clk 0:02:58]} 3. exd5 {[%clk 0:02:59]}  e4 {[%clk 0:02:59]} 4. Qe2 {[%clk 0:02:54]}  Nf6 {[%clk 0:02:59]} 5. d3 {[%clk 0:02:39]}  Qxd5 {[%clk 0:02:58]} 6. Nc3 {[%clk 0:02:35]}  Bb4 {[%clk 0:02:58]} 7. Nd2 {[%clk 0:02:30]}  Bxc3 {[%clk 0:02:59]} 8. bxc3 {[%clk 0:02:30]}  O-O {[%clk 0:02:59]} 9. dxe4 {[%clk 0:02:27]}  Qe5 {[%clk 0:02:54]} 10. Qe3 {[%clk 0:02:23]}  Nc6 {[%clk 0:02:49]} 11. Qg3 {[%clk 0:02:16]}  Qc5 {[%clk 0:02:43]} 12. Nb3 {[%clk 0:02:11]}  Qe7 {[%clk 0:02:36]} 13. f3 {[%clk 0:02:11]}  Be6 {[%clk 0:02:28]} 14. Bd3 {[%clk 0:02:01]}  Bxb3 {[%clk 0:02:21]} 15. axb3 {[%clk 0:01:58]}  Qc5 {[%clk 0:02:20]} 16. Bd2 {[%clk 0:01:53]}  Ne5 {[%clk 0:02:13]} 17. Be2 {[%clk 0:01:48]}  Rad8 {[%clk 0:02:09]} 18. b4 {[%clk 0:01:46]}  Qe7 {[%clk 0:01:58]} 19. Be3 {[%clk 0:01:39]}  b6 {[%clk 0:01:42]} 20. O-O {[%clk 0:01:35]}  Nh5 {[%clk 0:01:29]} 21. Qg5 {[%clk 0:01:30]}  Qxg5 {[%clk 0:01:26]} 22. Bxg5 {[%clk 0:01:29]}  f6 {[%clk 0:01:25]} 23. Be3 {[%clk 0:01:27]}  g5 {[%clk 0:01:19]} 24. g3 {[%clk 0:01:26]}  Ng7 {[%clk 0:01:19]} 25. Rxa7 {[%clk 0:01:23]}  Rd7 {[%clk 0:01:06]} 26. f4 {[%clk 0:01:19]}  Nc6 {[%clk 0:00:56]} 27. Bc4+ {[%clk 0:01:11]}  Kh8 {[%clk 0:00:54]} 28. Bb5 {[%clk 0:01:11]}  Nxa7 {[%clk 0:00:52]} 29. Bxd7 {[%clk 0:01:11]}  Rf7 {[%clk 0:00:48]} 30. Rd1 {[%clk 0:01:05]}  h6 {[%clk 0:00:48]} 31. c4 {[%clk 0:01:02]}  Re7 {[%clk 0:00:42]} 32. e5 {[%clk 0:00:56]}  fxe5 {[%clk 0:00:30]} 33. fxg5 {[%clk 0:00:57]}  h5 {[%clk 0:00:25]} 34. c5 {[%clk 0:00:53]}  Rxd7 {[%clk 0:00:09]} 35. Rxd7 {[%clk 0:00:52]}  Nf5 {[%clk 0:00:09]} 36. cxb6 {[%clk 0:00:48]}  cxb6 {[%clk 0:00:08]} 37. Bxb6 {[%clk 0:00:47]}  Nb5 {[%clk 0:00:08]} 38. Rd5 {[%clk 0:00:45]}  Nbd4 {[%clk 0:00:08]} 39. Bxd4 {[%clk 0:00:43]}  Nxd4 {[%clk 0:00:09]} 40. Rxd4 {[%clk 0:00:43]}  exd4 {[%clk 0:00:09]} 41. b5 {[%clk 0:00:43]}  Kg7 {[%clk 0:00:09]} 42. b6 {[%clk 0:00:44]}  Kg6 {[%clk 0:00:10]} 43. b7 {[%clk 0:00:44]}  Kxg5 {[%clk 0:00:11]} 44. b8=Q {[%clk 0:00:45]}  Kg4 {[%clk 0:00:11]} 45. Qf4+ {[%clk 0:00:44]}  Kh3 {[%clk 0:00:12]} 46. Qh4# {[%clk 0:00:45]} 1-0


[Site "https://www.chess.com"]

[Event "Titled Tuesday Blitz September 27 Early 2022"]
[White "Badelka, Olga"]
[Black "Papasimakopoulos, Alexandros"]
[WhiteFideId "13509926"]
[BlackFideId "4244125"]
[WhiteElo "2165"]
[BlackElo "2357"]
[Result "0-1"]
[Round "11"]
[TimeControl "180+1"]
[Date "2022.09.27"]
[WhiteClock "0:00:09"]
[BlackClock "0:01:05"]

1. c4 {[%clk 0:03:00]}  a5 {[%clk 0:02:49]} 2. d4 {[%clk 0:02:59]}  a4 {[%clk 0:02:49]} 3. e4 {[%clk 0:02:57]}  c5 {[%clk 0:02:47]} 4. dxc5 {[%clk 0:02:46]}  Qa5+ {[%clk 0:02:43]} 5. Nc3 {[%clk 0:02:25]}  a3 {[%clk 0:02:31]} 6. Qb3 {[%clk 0:02:18]}  axb2 {[%clk 0:02:27]} 7. Bxb2 {[%clk 0:02:18]}  Na6 {[%clk 0:02:27]} 8. Qb5 {[%clk 0:02:08]}  Nxc5 {[%clk 0:02:27]} 9. Qxa5 {[%clk 0:02:08]}  Rxa5 {[%clk 0:02:28]} 10. Nf3 {[%clk 0:01:55]}  d6 {[%clk 0:02:15]} 11. Nd2 {[%clk 0:01:50]}  Nf6 {[%clk 0:01:54]} 12. Nb3 {[%clk 0:01:44]}  Nxb3 {[%clk 0:01:43]} 13. axb3 {[%clk 0:01:45]}  Rxa1+ {[%clk 0:01:44]} 14. Bxa1 {[%clk 0:01:45]}  Bd7 {[%clk 0:01:42]} 15. Bd3 {[%clk 0:01:42]}  e6 {[%clk 0:01:40]} 16. O-O {[%clk 0:01:39]}  Be7 {[%clk 0:01:40]} 17. Bb2 {[%clk 0:01:37]}  Bc6 {[%clk 0:01:38]} 18. Ra1 {[%clk 0:01:36]}  Kd7 {[%clk 0:01:39]} 19. f4 {[%clk 0:01:26]}  d5 {[%clk 0:01:28]} 20. cxd5 {[%clk 0:01:17]}  exd5 {[%clk 0:01:27]} 21. exd5 {[%clk 0:00:57]}  Nxd5 {[%clk 0:01:25]} 22. Bf5+ {[%clk 0:00:49]}  Kc7 {[%clk 0:01:21]} 23. Nxd5+ {[%clk 0:00:49]}  Bxd5 {[%clk 0:01:21]} 24. Be5+ {[%clk 0:00:47]}  Kb6 {[%clk 0:01:21]} 25. Bxg7 {[%clk 0:00:42]}  Bc5+ {[%clk 0:01:19]} 26. Kf1 {[%clk 0:00:35]}  Rg8 {[%clk 0:01:18]} 27. Be5 {[%clk 0:00:26]}  Rxg2 {[%clk 0:01:16]} 28. Bc3 {[%clk 0:00:19]}  Bf3 {[%clk 0:01:13]} 29. Bd7 {[%clk 0:00:12]}  Kc7 {[%clk 0:01:05]} 30. Bf5 {[%clk 0:00:09]}  Rg1# {[%clk 0:01:05]} 0-1


[Site "https://www.chess.com"]

[Event "Titled Tuesday Blitz September 27 Early 2022"]
[White "Balabayeva, Xeniya"]
[Black "Aguilar, Juan"]
[WhiteFideId "13719688"]
[BlackFideId "3800091"]
[WhiteElo "1895"]
[BlackElo "2355"]
[Result "1-0"]
[Round "11"]
[TimeControl "180+1"]
[Date "2022.09.27"]
[WhiteClock "0:00:15"]
[BlackClock "0:00:35"]

1. e4 {[%clk 0:03:00]}  c5 {[%clk 0:02:59]} 2. Nf3 {[%clk 0:03:00]}  d6 {[%clk 0:02:59]} 3. Bb5+ {[%clk 0:02:54]}  Bd7 {[%clk 0:02:59]} 4. Bxd7+ {[%clk 0:02:52]}  Qxd7 {[%clk 0:02:59]} 5. O-O {[%clk 0:02:52]}  Nc6 {[%clk 0:02:59]} 6. c3 {[%clk 0:02:52]}  Nf6 {[%clk 0:03:00]} 7. Re1 {[%clk 0:02:50]}  e6 {[%clk 0:03:00]} 8. d4 {[%clk 0:02:49]}  cxd4 {[%clk 0:03:00]} 9. cxd4 {[%clk 0:02:50]}  d5 {[%clk 0:03:00]} 10. e5 {[%clk 0:02:44]}  Ne4 {[%clk 0:03:01]} 11. Nbd2 {[%clk 0:02:43]}  Nxd2 {[%clk 0:03:01]} 12. Bxd2 {[%clk 0:02:41]}  Bb4 {[%clk 0:03:01]} 13. Bxb4 {[%clk 0:02:33]}  Nxb4 {[%clk 0:03:01]} 14. Qd2 {[%clk 0:02:34]}  Nc6 {[%clk 0:02:55]} 15. h4 {[%clk 0:02:32]}  O-O {[%clk 0:02:53]} 16. h5 {[%clk 0:02:32]}  h6 {[%clk 0:02:53]} 17. Re3 {[%clk 0:02:27]}  Rfc8 {[%clk 0:02:44]} 18. Nh2 {[%clk 0:02:23]}  Ne7 {[%clk 0:02:43]} 19. g4 {[%clk 0:02:10]}  Qc6 {[%clk 0:02:14]} 20. Rc3 {[%clk 0:01:57]}  Qb6 {[%clk 0:02:12]} 21. Rac1 {[%clk 0:01:42]}  Rxc3 {[%clk 0:02:06]} 22. bxc3 {[%clk 0:01:40]}  Rc8 {[%clk 0:02:05]} 23. g5 {[%clk 0:01:37]}  hxg5 {[%clk 0:01:55]} 24. Qxg5 {[%clk 0:01:36]}  Nf5 {[%clk 0:01:28]} 25. Ng4 {[%clk 0:01:27]}  Qd8 {[%clk 0:01:08]} 26. Qxd8+ {[%clk 0:00:38]}  Rxd8 {[%clk 0:01:07]} 27. Ne3 {[%clk 0:00:38]}  Nh4 {[%clk 0:00:56]} 28. Kf1 {[%clk 0:00:32]}  Nf3 {[%clk 0:00:54]} 29. Ke2 {[%clk 0:00:29]}  Ng5 {[%clk 0:00:52]} 30. f3 {[%clk 0:00:23]}  Rc8 {[%clk 0:00:49]} 31. Rg1 {[%clk 0:00:17]}  f6 {[%clk 0:00:37]} 32. exf6 {[%clk 0:00:16]}  gxf6 {[%clk 0:00:37]} 33. f4 {[%clk 0:00:16]}  Rxc3 {[%clk 0:00:34]} 34. fxg5 {[%clk 0:00:17]}  fxg5 {[%clk 0:00:35]} 35. Rxg5+ {[%clk 0:00:16]}  Kf7 {[%clk 0:00:35]} 36. h6 {[%clk 0:00:15]} 1-0


[Site "https://www.chess.com"]

[Event "Titled Tuesday Blitz September 27 Early 2022"]
[White "Bashirli, Saadat"]
[Black "Antonova, Nadezhda"]
[WhiteFideId "13429990"]
[BlackFideId "14700182"]
[WhiteElo "1173"]
[BlackElo "1805"]
[Result "0-1"]
[Round "11"]
[TimeControl "180+1"]
[Date "2022.09.27"]
[WhiteClock "0:00:04"]
[BlackClock "0:00:02"]

1. d4 {[%clk 0:03:00]}  Nf6 {[%clk 0:02:58]} 2. c4 {[%clk 0:03:01]}  g6 {[%clk 0:02:58]} 3. Nc3 {[%clk 0:03:00]}  Bg7 {[%clk 0:02:59]} 4. e4 {[%clk 0:03:01]}  d6 {[%clk 0:03:00]} 5. Be2 {[%clk 0:02:57]}  O-O {[%clk 0:03:01]} 6. Bg5 {[%clk 0:02:55]}  Na6 {[%clk 0:02:55]} 7. Qd2 {[%clk 0:02:52]}  c5 {[%clk 0:02:55]} 8. d5 {[%clk 0:02:51]}  Qe8 {[%clk 0:02:51]} 9. h4 {[%clk 0:02:48]}  e6 {[%clk 0:02:49]} 10. Nf3 {[%clk 0:02:36]}  exd5 {[%clk 0:02:48]} 11. exd5 {[%clk 0:02:36]}  Ne4 {[%clk 0:02:38]} 12. Nxe4 {[%clk 0:02:32]}  Qxe4 {[%clk 0:02:39]} 13. O-O {[%clk 0:02:32]}  h6 {[%clk 0:02:37]} 14. Bd3 {[%clk 0:02:30]}  Qg4 {[%clk 0:02:29]} 15. Be7 {[%clk 0:02:27]}  Re8 {[%clk 0:02:16]} 16. Bxd6 {[%clk 0:02:27]}  Bd7 {[%clk 0:02:12]} 17. Rfe1 {[%clk 0:02:27]}  Bf6 {[%clk 0:02:11]} 18. Bg3 {[%clk 0:02:23]}  h5 {[%clk 0:01:59]} 19. Rab1 {[%clk 0:01:49]}  Nb4 {[%clk 0:01:41]} 20. a3 {[%clk 0:01:44]}  Nxd3 {[%clk 0:01:40]} 21. Qxd3 {[%clk 0:01:44]}  Bf5 {[%clk 0:01:40]} 22. Qb3 {[%clk 0:01:40]}  Bxb1 {[%clk 0:01:39]} 23. Rxb1 {[%clk 0:01:41]}  b6 {[%clk 0:01:33]} 24. Rd1 {[%clk 0:01:38]}  Rac8 {[%clk 0:01:30]} 25. Qa4 {[%clk 0:01:36]}  Bd4 {[%clk 0:01:25]} 26. Nxd4 {[%clk 0:01:32]}  cxd4 {[%clk 0:01:24]} 27. d6 {[%clk 0:01:30]}  Red8 {[%clk 0:01:22]} 28. Rd2 {[%clk 0:01:15]}  a5 {[%clk 0:01:11]} 29. Qb5 {[%clk 0:01:13]}  Rb8 {[%clk 0:01:05]} 30. Qd5 {[%clk 0:01:07]}  Qe6 {[%clk 0:00:47]} 31. Qxd4 {[%clk 0:01:06]}  Rbc8 {[%clk 0:00:46]} 32. b3 {[%clk 0:01:05]}  a4 {[%clk 0:00:46]} 33. Qxb6 {[%clk 0:00:59]}  axb3 {[%clk 0:00:45]} 34. Kh2 {[%clk 0:00:55]}  Qxc4 {[%clk 0:00:42]} 35. d7 {[%clk 0:00:54]}  Ra8 {[%clk 0:00:41]} 36. Bc7 {[%clk 0:00:48]}  Qxh4+ {[%clk 0:00:41]} 37. Kg1 {[%clk 0:00:48]}  Qg5 {[%clk 0:00:27]} 38. Rd1 {[%clk 0:00:41]}  Qg4 {[%clk 0:00:22]} 39. f3 {[%clk 0:00:36]}  Qg5 {[%clk 0:00:12]} 40. Bxd8 {[%clk 0:00:36]}  Qxd8 {[%clk 0:00:10]} 41. Qxb3 {[%clk 0:00:35]}  Ra7 {[%clk 0:00:08]} 42. Qd3 {[%clk 0:00:33]}  Ra8 {[%clk 0:00:06]} 43. Re1 {[%clk 0:00:28]}  Qb6+ {[%clk 0:00:05]} 44. Kh1 {[%clk 0:00:27]}  Rd8 {[%clk 0:00:02]} 45. Re8+ {[%clk 0:00:26]}  Kh7 {[%clk 0:00:02]} 46. Qc3 {[%clk 0:00:15]}  Qb1+ {[%clk 0:00:02]} 47. Kh2 {[%clk 0:00:14]}  Qb8+ {[%clk 0:00:02]} 48. g3 {[%clk 0:00:09]}  Rxe8 {[%clk 0:00:02]} 49. dxe8=Q {[%clk 0:00:09]}  Qxe8 {[%clk 0:00:03]} 50. Qb2 {[%clk 0:00:07]}  Qe3 {[%clk 0:00:03]} 51. Kg2 {[%clk 0:00:06]}  Qe6 {[%clk 0:00:02]} 52. a4 {[%clk 0:00:05]}  h4 {[%clk 0:00:02]} 53. g4 {[%clk 0:00:05]}  Qd6 {[%clk 0:00:02]} 54. Kg1 {[%clk 0:00:01]}  Qg3+ {[%clk 0:00:01]} 55. Qg2 {[%clk 0:00:02]}  Qe1+ {[%clk 0:00:02]} 56. Kh2 {[%clk 0:00:02]}  Qe5+ {[%clk 0:00:01]} 57. Kg1 {[%clk 0:00:01]}  Qe1+ {[%clk 0:00:01]} 58. Kh2 {[%clk 0:00:02]}  Qe5+ {[%clk 0:00:01]} 59. Kh1 {[%clk 0:00:03]}  Qe1+ {[%clk 0:00:02]} 60. Qg1 {[%clk 0:00:03]}  Qe5 {[%clk 0:00:02]} 61. Qh2 {[%clk 0:00:03]}  Qe1+ {[%clk 0:00:02]} 62. Kg2 {[%clk 0:00:04]}  Qe2+ {[%clk 0:00:02]} 63. Kg1 {[%clk 0:00:04]}  Qe1+ {[%clk 0:00:02]} 64. Kg2 {[%clk 0:00:04]}  Qe2+ {[%clk 0:00:02]} 65. Kh3 {[%clk 0:00:04]}  Qxf3+ {[%clk 0:00:02]} 66. Kxh4 {[%clk 0:00:05]}  Kg7 {[%clk 0:00:02]} 67. Qe5+ {[%clk 0:00:04]}  f6 {[%clk 0:00:02]} 68. Qe7+ {[%clk 0:00:04]}  Kh6 {[%clk 0:00:02]} 69. Qf8+ {[%clk 0:00:04]}  Kh7 {[%clk 0:00:02]} 70. Qf7+ {[%clk 0:00:04]}  Kh6 {[%clk 0:00:02]} 71. g5+ {[%clk 0:00:04]}  fxg5# {[%clk 0:00:02]} 0-1


[Site "https://www.chess.com"]

[Event "Titled Tuesday Blitz September 27 Early 2022"]
[White "Begunov, Konstantin"]
[Black "Tsukerman, Julia"]
[WhiteFideId "4118510"]
[BlackFideId "2621649"]
[WhiteElo "2165"]
[BlackElo "1667"]
[Result "1-0"]
[Round "11"]
[TimeControl "180+1"]
[Date "2022.09.27"]
[WhiteClock "0:00:57"]
[BlackClock "0:00:01"]

1. d4 {[%clk 0:02:58]}  d5 {[%clk 0:02:57]} 2. c4 {[%clk 0:02:58]}  e6 {[%clk 0:02:54]} 3. Nc3 {[%clk 0:02:58]}  Be7 {[%clk 0:02:53]} 4. Nf3 {[%clk 0:02:58]}  Nf6 {[%clk 0:02:53]} 5. Bg5 {[%clk 0:02:58]}  Nbd7 {[%clk 0:02:48]} 6. e3 {[%clk 0:02:18]}  h6 {[%clk 0:02:44]} 7. Bh4 {[%clk 0:02:18]}  O-O {[%clk 0:02:44]} 8. cxd5 {[%clk 0:02:18]}  exd5 {[%clk 0:02:44]} 9. Bd3 {[%clk 0:02:18]}  c6 {[%clk 0:02:41]} 10. Qc2 {[%clk 0:02:18]}  Re8 {[%clk 0:02:33]} 11. O-O {[%clk 0:02:18]}  Ne4 {[%clk 0:02:21]} 12. Bxe4 {[%clk 0:02:17]}  Bxh4 {[%clk 0:01:53]} 13. Bh7+ {[%clk 0:02:17]}  Kh8 {[%clk 0:01:42]} 14. Bf5 {[%clk 0:02:18]}  Be7 {[%clk 0:01:32]} 15. Rab1 {[%clk 0:02:15]}  a5 {[%clk 0:01:28]} 16. a3 {[%clk 0:02:15]}  Nf6 {[%clk 0:01:17]} 17. Ne5 {[%clk 0:02:15]}  Rf8 {[%clk 0:01:08]} 18. b4 {[%clk 0:02:13]}  axb4 {[%clk 0:01:05]} 19. axb4 {[%clk 0:02:14]}  Nd7 {[%clk 0:00:46]} 20. Bxd7 {[%clk 0:01:56]}  Bxd7 {[%clk 0:00:42]} 21. b5 {[%clk 0:01:57]}  Bd6 {[%clk 0:00:39]} 22. bxc6 {[%clk 0:01:56]}  bxc6 {[%clk 0:00:38]} 23. Nxd7 {[%clk 0:01:47]}  Qxd7 {[%clk 0:00:38]} 24. Na4 {[%clk 0:01:47]}  Qc7 {[%clk 0:00:32]} 25. g3 {[%clk 0:01:46]}  Rfb8 {[%clk 0:00:20]} 26. Rxb8+ {[%clk 0:01:44]}  Rxb8 {[%clk 0:00:21]} 27. Rc1 {[%clk 0:01:43]}  Rc8 {[%clk 0:00:21]} 28. Nc5 {[%clk 0:01:41]}  Bxc5 {[%clk 0:00:17]} 29. Qxc5 {[%clk 0:01:42]}  Qd7 {[%clk 0:00:16]} 30. Rb1 {[%clk 0:01:34]}  g6 {[%clk 0:00:15]} 31. Rb6 {[%clk 0:01:33]}  Kg7 {[%clk 0:00:14]} 32. Qb4 {[%clk 0:01:33]}  Ra8 {[%clk 0:00:10]} 33. Kg2 {[%clk 0:01:25]}  Rc8 {[%clk 0:00:09]} 34. Rb7 {[%clk 0:01:23]}  Rc7 {[%clk 0:00:10]} 35. Rb8 {[%clk 0:01:24]}  Rc8 {[%clk 0:00:10]} 36. Rb7 {[%clk 0:01:24]}  Rc7 {[%clk 0:00:10]} 37. Rb6 {[%clk 0:01:24]}  Rc8 {[%clk 0:00:10]} 38. Qa4 {[%clk 0:01:17]}  Rc7 {[%clk 0:00:10]} 39. Qd1 {[%clk 0:01:15]}  Rc8 {[%clk 0:00:10]} 40. Qf3 {[%clk 0:01:15]}  h5 {[%clk 0:00:09]} 41. Ra6 {[%clk 0:01:10]}  Rc7 {[%clk 0:00:10]} 42. Qf4 {[%clk 0:01:09]}  Qe7 {[%clk 0:00:08]} 43. Ra8 {[%clk 0:01:06]}  Rd7 {[%clk 0:00:06]} 44. Qb8 {[%clk 0:01:03]}  Kf6 {[%clk 0:00:03]} 45. Qh8+ {[%clk 0:01:02]}  Kg5 {[%clk 0:00:02]} 46. Re8 {[%clk 0:00:59]}  Qf6 {[%clk 0:00:01]} 47. Re5+ {[%clk 0:00:57]} 1-0


[Site "https://www.chess.com"]

[Event "Titled Tuesday Blitz September 27 Early 2022"]
[White "Bharath Subramaniyam H"]
[Black "Piesik, Piotr"]
[WhiteFideId "46634827"]
[BlackFideId "1136194"]
[WhiteElo "2346"]
[BlackElo "2221"]
[Result "1-0"]
[Round "11"]
[TimeControl "180+1"]
[Date "2022.09.27"]
[WhiteClock "0:01:39"]
[BlackClock "0:01:38"]

1. d4 {[%clk 0:03:00]}  c5 {[%clk 0:02:59]} 2. d5 {[%clk 0:02:59]}  e5 {[%clk 0:02:59]} 3. e4 {[%clk 0:02:57]}  d6 {[%clk 0:02:59]} 4. c4 {[%clk 0:02:56]}  Be7 {[%clk 0:02:57]} 5. Nc3 {[%clk 0:02:56]}  Bg5 {[%clk 0:02:57]} 6. Nf3 {[%clk 0:02:56]}  Bxc1 {[%clk 0:02:57]} 7. Qxc1 {[%clk 0:02:57]}  Ne7 {[%clk 0:02:56]} 8. h4 {[%clk 0:02:54]}  O-O {[%clk 0:02:56]} 9. Bd3 {[%clk 0:02:52]}  h6 {[%clk 0:02:53]} 10. Qd2 {[%clk 0:02:50]}  f5 {[%clk 0:02:53]} 11. O-O-O {[%clk 0:02:47]}  Nd7 {[%clk 0:02:52]} 12. h5 {[%clk 0:02:43]}  Nf6 {[%clk 0:02:51]} 13. Rde1 {[%clk 0:02:30]}  fxe4 {[%clk 0:02:45]} 14. Bxe4 {[%clk 0:02:24]}  Nxe4 {[%clk 0:02:43]} 15. Nxe4 {[%clk 0:02:24]}  Nf5 {[%clk 0:02:43]} 16. g4 {[%clk 0:02:16]}  Nd4 {[%clk 0:02:41]} 17. Nxd4 {[%clk 0:02:16]}  cxd4 {[%clk 0:02:42]} 18. g5 {[%clk 0:02:17]}  Rf4 {[%clk 0:02:38]} 19. gxh6 {[%clk 0:02:16]}  gxh6 {[%clk 0:02:38]} 20. Rhg1+ {[%clk 0:02:14]}  Kh7 {[%clk 0:02:36]} 21. Qb4 {[%clk 0:01:59]}  Qc7 {[%clk 0:02:25]} 22. Qxd6 {[%clk 0:01:45]}  Qxd6 {[%clk 0:01:47]} 23. Nxd6 {[%clk 0:01:45]}  Bg4 {[%clk 0:01:42]} 24. Rxe5 {[%clk 0:01:44]}  d3 {[%clk 0:01:39]} 25. Re7+ {[%clk 0:01:41]}  Kg8 {[%clk 0:01:38]} 26. Re4 {[%clk 0:01:39]} 1-0


[Site "https://www.chess.com"]

[Event "Titled Tuesday Blitz September 27 Early 2022"]
[White "Bowden, Karl"]
[Black "Odegov, Artem"]
[WhiteFideId "400548"]
[BlackFideId "34183644"]
[WhiteElo "2482"]
[BlackElo "2286"]
[Result "0-1"]
[Round "11"]
[TimeControl "180+1"]
[Date "2022.09.27"]
[WhiteClock "0:00:11"]
[BlackClock "0:01:28"]

1. e4 {[%clk 0:02:59]}  e6 {[%clk 0:02:59]} 2. d3 {[%clk 0:02:59]}  d5 {[%clk 0:02:59]} 3. Qe2 {[%clk 0:03:00]}  Nf6 {[%clk 0:02:58]} 4. Nf3 {[%clk 0:02:59]}  c5 {[%clk 0:02:59]} 5. g3 {[%clk 0:02:59]}  Nc6 {[%clk 0:03:00]} 6. e5 {[%clk 0:02:59]}  Nd7 {[%clk 0:03:00]} 7. Bg2 {[%clk 0:02:59]}  Be7 {[%clk 0:02:58]} 8. O-O {[%clk 0:02:59]}  O-O {[%clk 0:02:59]} 9. c4 {[%clk 0:02:59]}  Nd4 {[%clk 0:02:52]} 10. Nxd4 {[%clk 0:02:55]}  cxd4 {[%clk 0:02:53]} 11. cxd5 {[%clk 0:02:51]}  exd5 {[%clk 0:02:53]} 12. Bxd5 {[%clk 0:02:46]}  Nc5 {[%clk 0:02:53]} 13. Bg2 {[%clk 0:02:40]}  Bf5 {[%clk 0:02:52]} 14. Rd1 {[%clk 0:02:40]}  Qb6 {[%clk 0:02:48]} 15. Na3 {[%clk 0:02:28]}  Qa6 {[%clk 0:02:45]} 16. Bf1 {[%clk 0:02:16]}  Rfd8 {[%clk 0:02:41]} 17. Bf4 {[%clk 0:02:05]}  Rac8 {[%clk 0:02:39]} 18. Nc4 {[%clk 0:01:38]}  Nxd3 {[%clk 0:02:34]} 19. Rxd3 {[%clk 0:01:27]}  Qxc4 {[%clk 0:02:33]} 20. Rb3 {[%clk 0:00:53]}  d3 {[%clk 0:02:28]} 21. Qd1 {[%clk 0:00:50]}  Bc5 {[%clk 0:02:12]} 22. Rc1 {[%clk 0:00:46]}  Qd4 {[%clk 0:02:10]} 23. Be3 {[%clk 0:00:32]}  Qxe3 {[%clk 0:02:02]} 24. fxe3 {[%clk 0:00:27]}  Bxe3+ {[%clk 0:02:03]} 25. Kg2 {[%clk 0:00:27]}  Rxc1 {[%clk 0:01:55]} 26. Qf3 {[%clk 0:00:22]}  Rxf1 {[%clk 0:01:34]} 27. Kxf1 {[%clk 0:00:12]}  d2 {[%clk 0:01:31]} 28. Qd1 {[%clk 0:00:12]}  Bh3+ {[%clk 0:01:29]} 29. Ke2 {[%clk 0:00:12]}  Bg4+ {[%clk 0:01:29]} 30. Kxe3 {[%clk 0:00:12]}  Bxd1 {[%clk 0:01:30]} 31. Rd3 {[%clk 0:00:10]}  Rxd3+ {[%clk 0:01:29]} 32. Kxd3 {[%clk 0:00:10]}  Kf8 {[%clk 0:01:27]} 33. Kxd2 {[%clk 0:00:11]}  Bg4 {[%clk 0:01:28]} 0-1


[Site "https://www.chess.com"]

[Event "Titled Tuesday Blitz September 27 Early 2022"]
[White "Cramling Bellon, Anna"]
[Black "Koridze, Lile"]
[WhiteFideId "32009232"]
[BlackFideId "13612514"]
[WhiteElo "1905"]
[BlackElo "2050"]
[Result "1-0"]
[Round "11"]
[TimeControl "180+1"]
[Date "2022.09.27"]
[WhiteClock "0:00:12"]
[BlackClock "0:01:53"]

1. d4 {[%clk 0:03:00]}  Nf6 {[%clk 0:02:59]} 2. c4 {[%clk 0:03:00]}  e6 {[%clk 0:03:00]} 3. Nc3 {[%clk 0:03:00]}  Bb4 {[%clk 0:03:00]} 4. Qc2 {[%clk 0:03:00]}  O-O {[%clk 0:03:00]} 5. e4 {[%clk 0:02:58]}  d6 {[%clk 0:03:00]} 6. Nf3 {[%clk 0:02:58]}  Nbd7 {[%clk 0:03:00]} 7. e5 {[%clk 0:02:57]}  dxe5 {[%clk 0:02:58]} 8. dxe5 {[%clk 0:02:58]}  Ng4 {[%clk 0:02:58]} 9. Bf4 {[%clk 0:02:56]}  Bc5 {[%clk 0:02:59]} 10. Ne4 {[%clk 0:02:43]}  Bb4+ {[%clk 0:02:59]} 11. Nc3 {[%clk 0:02:40]}  f6 {[%clk 0:02:51]} 12. Bd3 {[%clk 0:02:36]}  g6 {[%clk 0:02:43]} 13. Bxg6 {[%clk 0:02:29]}  f5 {[%clk 0:02:39]} 14. Bh5 {[%clk 0:01:44]}  Ngf6 {[%clk 0:02:34]} 15. exf6 {[%clk 0:01:36]}  Nxf6 {[%clk 0:02:33]} 16. Bg5 {[%clk 0:01:34]}  Qd6 {[%clk 0:02:30]} 17. Rd1 {[%clk 0:01:26]}  Qc6 {[%clk 0:02:26]} 18. Bxf6 {[%clk 0:01:09]}  Rxf6 {[%clk 0:02:25]} 19. Ne5 {[%clk 0:00:55]}  Qc5 {[%clk 0:02:24]} 20. Qe2 {[%clk 0:00:44]}  b6 {[%clk 0:02:17]} 21. O-O {[%clk 0:00:43]}  Bb7 {[%clk 0:02:17]} 22. Nd7 {[%clk 0:00:40]}  Qe7 {[%clk 0:02:17]} 23. Nxf6+ {[%clk 0:00:40]}  Qxf6 {[%clk 0:02:17]} 24. Bf3 {[%clk 0:00:40]}  c6 {[%clk 0:02:17]} 25. Rfe1 {[%clk 0:00:38]}  Re8 {[%clk 0:02:16]} 26. Qe3 {[%clk 0:00:36]}  Bc5 {[%clk 0:02:12]} 27. Qd3 {[%clk 0:00:34]}  Bf8 {[%clk 0:02:01]} 28. Qd7 {[%clk 0:00:33]}  Re7 {[%clk 0:02:02]} 29. Qd8 {[%clk 0:00:33]}  Kg7 {[%clk 0:01:58]} 30. Rd7 {[%clk 0:00:31]}  e5 {[%clk 0:01:55]} 31. Rxe7+ {[%clk 0:00:30]}  Bxe7 {[%clk 0:01:56]} 32. Qd7 {[%clk 0:00:26]}  Ba6 {[%clk 0:01:56]} 33. Qxc6 {[%clk 0:00:19]}  Qg5 {[%clk 0:01:56]} 34. Qe6 {[%clk 0:00:18]}  Bf6 {[%clk 0:01:55]} 35. Bd5 {[%clk 0:00:15]}  Qd2 {[%clk 0:01:53]} 36. Qf7+ {[%clk 0:00:12]}  Kh8 {[%clk 0:01:53]} 37. Qg8# {[%clk 0:00:12]} 1-0


[Site "https://www.chess.com"]

[Event "Titled Tuesday Blitz September 27 Early 2022"]
[White "Curtis, John"]
[Black "Fawzy, Adham"]
[WhiteFideId "3200256"]
[BlackFideId "10613129"]
[WhiteElo "2203"]
[BlackElo "2541"]
[Result "1/2-1/2"]
[Round "11"]
[TimeControl "180+1"]
[Date "2022.09.27"]
[WhiteClock "0:02:26"]
[BlackClock "0:01:26"]

1. c4 {[%clk 0:03:00]}  c6 {[%clk 0:02:59]} 2. Nf3 {[%clk 0:02:59]}  d5 {[%clk 0:02:59]} 3. d4 {[%clk 0:02:59]}  Nf6 {[%clk 0:02:59]} 4. e3 {[%clk 0:02:58]}  e6 {[%clk 0:02:58]} 5. Qc2 {[%clk 0:02:57]}  Nbd7 {[%clk 0:02:54]} 6. a3 {[%clk 0:02:55]}  Bd6 {[%clk 0:02:51]} 7. Nc3 {[%clk 0:02:54]}  O-O {[%clk 0:02:50]} 8. e4 {[%clk 0:02:54]}  dxe4 {[%clk 0:02:45]} 9. Nxe4 {[%clk 0:02:54]}  Nxe4 {[%clk 0:02:45]} 10. Qxe4 {[%clk 0:02:54]}  Nf6 {[%clk 0:02:45]} 11. Qh4 {[%clk 0:02:53]}  c5 {[%clk 0:02:37]} 12. Bd3 {[%clk 0:02:50]}  cxd4 {[%clk 0:02:28]} 13. Bg5 {[%clk 0:02:49]}  h6 {[%clk 0:02:22]} 14. Bxh6 {[%clk 0:02:49]}  gxh6 {[%clk 0:02:18]} 15. Qxh6 {[%clk 0:02:49]}  e5 {[%clk 0:01:37]} 16. Qg5+ {[%clk 0:02:28]}  Kh8 {[%clk 0:01:33]} 17. Qh4+ {[%clk 0:02:26]}  Kg8 {[%clk 0:01:29]} 18. Qg5+ {[%clk 0:02:26]}  Kh8 {[%clk 0:01:28]} 19. Qh4+ {[%clk 0:02:26]}  Kg8 {[%clk 0:01:26]} 20. Qg5+ {[%clk 0:02:26]} 1/2-1/2


[Site "https://www.chess.com"]